{"text_format":"1","workbook":"xlsx","n_sheets":3,"sheets":["Лист1","Лист2","Лист3"],"not_rendered":{"charts":0,"images":0,"macros":1,"external_links":0,"defined_names":1,"comments":0,"pivot_tables":0},"unopened":[],"bounds":{"document_bytes":16777216,"sheet_cells":100000,"rows_first":2000,"rows_last":500,"rows_between":2000,"halvings":0,"cell_chars":16384,"cell_head_chars":4096},"cells_cut":0,"cells_raw":0,"read":"whole","date_system":"1900"}

{"sheet":"Лист1","index":0,"n_rows":24,"n_cols":7,"rows_kept":24,"cut":false,"hidden":false,"merged":[]}
["Фамилия"]
["Носов",null,"Фамилия","К-во",null,"Фамилия с сортировкой"]
["Гора",null,{"$f":"Уник_по_критер(A2:A24,,,,,1)","v":"Носов"},{"$f":"COUNTIF($A$1:$A$24,C3)","v":2},null,{"$f":"Уник_по_критер(A2:A24,,,,,1,1)","v":"Гора"},{"$f":"COUNTIF($A$2:$A$24,F3)","v":4}]
["Сидоров",null,"Гора",{"$f":"COUNTIF($A$1:$A$24,C4)","v":4},null,"Жмых",{"$f":"COUNTIF($A$2:$A$24,F4)","v":6}]
["Жмых",null,"Сидоров",1,null,"Иванов",8]
["Иванов",null,"Жмых",6,null,"Копытин",1]
["Жмых",null,"Иванов",8,null,"Носов",2]
["Иванов",null,"Копытин",1,null,"Петров",1]
["Жмых",null,"Петров",1,null,"Сидоров",1]
["Иванов",null,"",0,null,"",0]
["Жмых",null,"",0,null,"",0]
["Гора",null,"",0,null,"",0]
["Иванов",null,"",0,null,"",0]
["Иванов",null,"",0,null,"",0]
["Иванов",null,"",0,null,"",0]
["Иванов",null,"",0,null,"",0]
["Копытин",null,"",0,null,"",0]
["Носов",null,"",0,null,"",0]
["Гора",null,"",0,null,"",0]
["Петров",null,"",0,null,"",0]
["Гора",null,"",0,null,"",0]
["Жмых",null,"",0,null,"",0]
["Жмых"]
["Иванов"]

{"sheet":"Лист2","index":1,"n_rows":0,"n_cols":0,"rows_kept":0,"cut":false,"hidden":false,"merged":[]}

{"sheet":"Лист3","index":2,"n_rows":0,"n_cols":0,"rows_kept":0,"cut":false,"hidden":false,"merged":[]}